[Event "Late-Titled-Tuesday-Blitz-January-23-2024"]
[Site "Chess.com"]
[Date "2024.01.23"]
[Round "2"]
[White "GMRAVEN_ON_YOUTUBE"]
[Black "Mikhal867"]
[Result "1-0"]
[WhiteElo "2844"]
[BlackElo "2424"]
[TimeControl "180+1"]
[EndTime "14:13:52 PST"]
[Termination "GMRAVEN_ON_YOUTUBE won by resignation"]

1. f4 {[%clk 0:03:00.9]} 1... e5 {[%clk 0:02:54.4]} 2. fxe5 {[%clk 0:03:00.9]}
2... d6 {[%clk 0:02:54.1]} 3. exd6 {[%clk 0:03:01.8]} 3... Bxd6 {[%clk
0:02:53.3]} 4. Nf3 {[%clk 0:03:02.4]} 4... g5 {[%clk 0:02:53]} 5. g3 {[%clk
0:03:02.8]} 5... g4 {[%clk 0:02:48.9]} 6. Nh4 {[%clk 0:03:03.1]} 6... Be7 {[%clk
0:02:46.5]} 7. Ng2 {[%clk 0:03:02.2]} 7... f5 {[%clk 0:02:42.5]} 8. d4 {[%clk
0:03:01.4]} 8... Nf6 {[%clk 0:02:39.4]} 9. Nc3 {[%clk 0:02:58.8]} 9... b6 {[%clk
0:02:32.8]} 10. d5 {[%clk 0:02:57.1]} 10... Bb7 {[%clk 0:02:30.5]} 11. Nf4
{[%clk 0:02:57.3]} 11... Bb4 {[%clk 0:02:25.1]} 12. Bg2 {[%clk 0:02:56.5]} 12...
O-O {[%clk 0:02:14.1]} 13. O-O {[%clk 0:02:55.3]} 13... Bxc3 {[%clk 0:02:06.7]}
14. bxc3 {[%clk 0:02:54.4]} 14... Ne4 {[%clk 0:02:06.9]} 15. c4 {[%clk
0:02:47.3]} 15... Qe7 {[%clk 0:01:56.7]} 16. Ne6 {[%clk 0:02:45.3]} 16... Rf7
{[%clk 0:01:52.2]} 17. Bxe4 {[%clk 0:02:39.5]} 17... fxe4 {[%clk 0:01:51.2]} 18.
Bb2 {[%clk 0:02:30.9]} 18... c5 {[%clk 0:01:25.8]} 19. Rxf7 {[%clk 0:02:28.6]}
19... Qxf7 {[%clk 0:01:25.5]} 20. Qd2 {[%clk 0:02:29.1]} 20... Nd7 {[%clk
0:01:20]} 21. Qc3 {[%clk 0:02:28.7]} 1-0

[Event "Late-Titled-Tuesday-Blitz-January-23-2024"]
[Site "Chess.com"]
[Date "2024.01.23"]
[Round "2"]
[White "YurasovMat-2012"]
[Black "Jumbo"]
[Result "0-1"]
[WhiteElo "2597"]
[BlackElo "2960"]
[TimeControl "180+1"]
[EndTime "14:14:06 PST"]
[Termination "Jumbo won by resignation"]

1. e4 {[%clk 0:03:00.9]} 1... c5 {[%clk 0:02:58.8]} 2. Nf3 {[%clk 0:03:00.1]}
2... d6 {[%clk 0:02:58.9]} 3. Bb5+ {[%clk 0:02:59.2]} 3... Bd7 {[%clk
0:02:58.8]} 4. Bxd7+ {[%clk 0:02:59.1]} 4... Nxd7 {[%clk 0:02:59.7]} 5. O-O
{[%clk 0:02:58.4]} 5... Ngf6 {[%clk 0:02:59.9]} 6. Re1 {[%clk 0:02:58.2]} 6...
e6 {[%clk 0:03:00.2]} 7. d4 {[%clk 0:02:57.1]} 7... cxd4 {[%clk 0:02:59.3]} 8.
Nxd4 {[%clk 0:02:58]} 8... Rc8 {[%clk 0:02:56.2]} 9. b3 {[%clk 0:02:56.2]} 9...
a6 {[%clk 0:02:44.3]} 10. c4 {[%clk 0:02:55.4]} 10... Be7 {[%clk 0:02:44.6]} 11.
Bb2 {[%clk 0:02:54.9]} 11... Qa5 {[%clk 0:02:43.7]} 12. Nc3 {[%clk 0:02:53.4]}
12... O-O {[%clk 0:02:37.2]} 13. Qe2 {[%clk 0:02:49.3]} 13... Rfe8 {[%clk
0:02:34.5]} 14. Rad1 {[%clk 0:02:48.1]} 14... Ne5 {[%clk 0:02:31.8]} 15. h3
{[%clk 0:02:46.3]} 15... Ng6 {[%clk 0:02:31.4]} 16. g3 {[%clk 0:02:39.7]} 16...
Bf8 {[%clk 0:02:30]} 17. f4 {[%clk 0:02:38]} 17... e5 {[%clk 0:02:30]} 18. fxe5
{[%clk 0:02:37.7]} 18... dxe5 {[%clk 0:02:22.6]} 19. Nf5 {[%clk 0:02:37.1]}
19... Bb4 {[%clk 0:02:20.8]} 20. Qf3 {[%clk 0:02:35.6]} 20... b5 {[%clk
0:02:17.3]} 21. Rf1 {[%clk 0:02:28.1]} 21... bxc4 {[%clk 0:02:03.1]} 22. Nxg7
{[%clk 0:02:27.2]} 22... Qb6+ {[%clk 0:01:57]} 23. Kh1 {[%clk 0:02:15.8]} 23...
Kxg7 {[%clk 0:01:56.1]} 24. Nd5 {[%clk 0:02:12.2]} 24... Nxd5 {[%clk 0:01:55.8]}
25. Qxf7+ {[%clk 0:02:02.5]} 25... Kh8 {[%clk 0:01:55.2]} 26. Rxd5 {[%clk
0:01:59.2]} 26... Rf8 {[%clk 0:01:51.8]} 27. Rxe5 {[%clk 0:01:58.5]} 27... c3
{[%clk 0:01:48.3]} 0-1

[Event "Late-Titled-Tuesday-Blitz-January-23-2024"]
[Site "Chess.com"]
[Date "2024.01.23"]
[Round "2"]
[White "m_ezat"]
[Black "BozeKat"]
[Result "1-0"]
[WhiteElo "2451"]
[BlackElo "2015"]
[TimeControl "180+1"]
[EndTime "14:14:18 PST"]
[Termination "m_ezat won by resignation"]

1. d4 {[%clk 0:02:50.3]} 1... Nf6 {[%clk 0:02:59.7]} 2. c4 {[%clk 0:02:50.2]}
2... e6 {[%clk 0:02:59.8]} 3. Nc3 {[%clk 0:02:50.8]} 3... Bb4 {[%clk 0:02:59.2]}
4. e3 {[%clk 0:02:51.4]} 4... b6 {[%clk 0:02:59.4]} 5. a3 {[%clk 0:02:51.8]}
5... Bxc3+ {[%clk 0:02:59]} 6. bxc3 {[%clk 0:02:52.7]} 6... c5 {[%clk
0:02:57.8]} 7. Bd3 {[%clk 0:02:51.5]} 7... Bb7 {[%clk 0:02:56.5]} 8. f3 {[%clk
0:02:50.3]} 8... O-O {[%clk 0:02:54.3]} 9. Ne2 {[%clk 0:02:49.2]} 9... Nc6
{[%clk 0:02:52.9]} 10. O-O {[%clk 0:02:48.4]} 10... d6 {[%clk 0:02:51.5]} 11. e4
{[%clk 0:02:48.6]} 11... e5 {[%clk 0:02:49.8]} 12. Bg5 {[%clk 0:02:48.6]} 12...
h6 {[%clk 0:02:38.3]} 13. Bh4 {[%clk 0:02:47.4]} 13... g5 {[%clk 0:02:22.7]} 14.
Bf2 {[%clk 0:02:46]} 14... Nh5 {[%clk 0:02:21.3]} 15. h4 {[%clk 0:02:45.5]}
15... Kg7 {[%clk 0:02:15.4]} 16. g4 {[%clk 0:02:40.7]} 16... Nf4 {[%clk
0:02:13.5]} 17. Ng3 {[%clk 0:02:35.2]} 17... Nxd3 {[%clk 0:02:05]} 18. Qxd3
{[%clk 0:02:33.6]} 18... Ne7 {[%clk 0:02:04]} 19. Rad1 {[%clk 0:02:30.8]} 19...
gxh4 {[%clk 0:01:58.9]} 20. Nh5+ {[%clk 0:02:29]} 20... Kh8 {[%clk 0:01:51.4]}
21. Bxh4 {[%clk 0:02:28]} 21... Qd7 {[%clk 0:01:43.2]} 22. dxe5 {[%clk
0:02:26.7]} 22... Ng6 {[%clk 0:01:29.9]} 23. Bf6+ {[%clk 0:02:19.6]} 23... Kh7
{[%clk 0:01:30.3]} 24. Qe3 {[%clk 0:02:16.1]} 24... d5 {[%clk 0:01:23.1]} 25.
exd5 {[%clk 0:02:14.1]} 25... Ba6 {[%clk 0:01:17.4]} 26. Bg7 {[%clk 0:02:13.7]}
26... Qe7 {[%clk 0:01:05.7]} 27. Qxh6+ {[%clk 0:02:10.8]} 1-0

[Event "Late-Titled-Tuesday-Blitz-January-23-2024"]
[Site "Chess.com"]
[Date "2024.01.23"]
[Round "2"]
[White "Walter_White_Poland"]
[Black "Gentlejimmy7"]
[Result "0-1"]
[WhiteElo "2348"]
[BlackElo "2542"]
[TimeControl "180+1"]
[EndTime "14:14:37 PST"]
[Termination "Gentlejimmy7 won by resignation"]

1. e4 {[%clk 0:02:56.7]} 1... c6 {[%clk 0:02:59.8]} 2. d4 {[%clk 0:02:56.1]}
2... d5 {[%clk 0:02:59.2]} 3. f3 {[%clk 0:02:56.3]} 3... e5 {[%clk 0:02:56.7]}
4. dxe5 {[%clk 0:02:53.3]} 4... Qb6 {[%clk 0:02:56.2]} 5. Nc3 {[%clk 0:02:52.5]}
5... Bc5 {[%clk 0:02:56.3]} 6. Na4 {[%clk 0:02:51.6]} 6... Bf2+ {[%clk
0:02:55.8]} 7. Ke2 {[%clk 0:02:51.2]} 7... Qb5+ {[%clk 0:02:34.1]} 8. Kxf2
{[%clk 0:02:50.3]} 8... Qxa4 {[%clk 0:02:33.6]} 9. Be3 {[%clk 0:02:43.1]} 9...
dxe4 {[%clk 0:02:28.8]} 10. b3 {[%clk 0:02:06.5]} 10... Qa5 {[%clk 0:02:22.5]}
11. Qd6 {[%clk 0:01:58.9]} 11... Nd7 {[%clk 0:02:18.3]} 12. f4 {[%clk
0:01:55.7]} 12... Nh6 {[%clk 0:02:13.3]} 13. e6 {[%clk 0:01:44.3]} 13... Ng4+
{[%clk 0:01:44.2]} 14. Kg3 {[%clk 0:01:41.2]} 14... Nxe3 {[%clk 0:01:35.8]} 15.
exd7+ {[%clk 0:01:40.5]} 15... Bxd7 {[%clk 0:01:34]} 16. Bc4 {[%clk 0:01:08]}
16... Nf5+ {[%clk 0:01:32.4]} 17. Kf2 {[%clk 0:01:06]} 17... Nxd6 {[%clk
0:01:32.3]} 0-1

[Event "Late-Titled-Tuesday-Blitz-January-23-2024"]
[Site "Chess.com"]
[Date "2024.01.23"]
[Round "2"]
[White "Nf3c5"]
[Black "Andrii_Prydun"]
[Result "0-1"]
[WhiteElo "2548"]
[BlackElo "2399"]
[TimeControl "180+1"]
[EndTime "14:14:44 PST"]
[Termination "Andrii_Prydun won by resignation"]

1. d4 {[%clk 0:02:52]} 1... Nf6 {[%clk 0:02:54]} 2. Nf3 {[%clk 0:02:50.2]} 2...
a6 {[%clk 0:02:49.9]} 3. e3 {[%clk 0:02:42]} 3... d5 {[%clk 0:02:44.4]} 4. c4
{[%clk 0:02:32.2]} 4... c6 {[%clk 0:02:18.6]} 5. c5 {[%clk 0:02:14.3]} 5... a5
{[%clk 0:02:05.9]} 6. Ne5 {[%clk 0:02:09.7]} 6... Nfd7 {[%clk 0:01:57.3]} 7. f4
{[%clk 0:01:58.3]} 7... Nxe5 {[%clk 0:01:54.7]} 8. fxe5 {[%clk 0:01:57.7]} 8...
Bf5 {[%clk 0:01:54.6]} 9. Bd3 {[%clk 0:01:53.8]} 9... e6 {[%clk 0:01:52.4]} 10.
Bxf5 {[%clk 0:01:48]} 10... exf5 {[%clk 0:01:53.3]} 11. O-O {[%clk 0:01:48.3]}
11... g6 {[%clk 0:01:52.9]} 12. g4 {[%clk 0:01:45.1]} 12... Qg5 {[%clk
0:01:49.6]} 13. h3 {[%clk 0:01:42.6]} 13... h5 {[%clk 0:01:27.8]} 14. e4 {[%clk
0:01:35.5]} 14... Qh4 {[%clk 0:01:27.2]} 15. exf5 {[%clk 0:01:21.6]} 15... Qg3+
{[%clk 0:01:26.2]} 16. Kh1 {[%clk 0:01:21.7]} 16... Qxh3+ {[%clk 0:01:26.3]} 17.
Kg1 {[%clk 0:01:22]} 17... Qg3+ {[%clk 0:01:26.8]} 0-1

[Event "Late-Titled-Tuesday-Blitz-January-23-2024"]
[Site "Chess.com"]
[Date "2024.01.23"]
[Round "2"]
[White "HackingKid98"]
[Black "ItalianMachine"]
[Result "1-0"]
[WhiteElo "2548"]
[BlackElo "2366"]
[TimeControl "180+1"]
[EndTime "14:14:46 PST"]
[Termination "HackingKid98 won by resignation"]

1. Nf3 {[%clk 0:03:00.9]} 1... Nf6 {[%clk 0:02:59]} 2. g3 {[%clk 0:03:00.7]}
2... g6 {[%clk 0:02:45.4]} 3. Bg2 {[%clk 0:03:00.9]} 3... Bg7 {[%clk 0:02:02.6]}
4. c4 {[%clk 0:02:59.8]} 4... d6 {[%clk 0:02:03.5]} 5. Nc3 {[%clk 0:02:59.5]}
5... O-O {[%clk 0:02:04.4]} 6. d4 {[%clk 0:02:59.9]} 6... c5 {[%clk 0:02:04.1]}
7. O-O {[%clk 0:02:59.4]} 7... cxd4 {[%clk 0:02:04.3]} 8. Nxd4 {[%clk
0:02:58.1]} 8... a6 {[%clk 0:02:04.9]} 9. Nb3 {[%clk 0:02:49.3]} 9... Nc6 {[%clk
0:02:04.2]} 10. c5 {[%clk 0:02:49.7]} 10... dxc5 {[%clk 0:02:00.1]} 11. Qxd8
{[%clk 0:02:48.9]} 11... Rxd8 {[%clk 0:01:59.6]} 12. Nxc5 {[%clk 0:02:49.5]}
12... Nd7 {[%clk 0:01:56]} 13. N5a4 {[%clk 0:02:40]} 13... Rb8 {[%clk
0:01:30.8]} 14. Rd1 {[%clk 0:02:38.4]} 14... Nde5 {[%clk 0:01:27.3]} 15. Bf4
{[%clk 0:02:32.3]} 15... Bf5 {[%clk 0:01:20]} 16. Nc5 {[%clk 0:02:27.6]} 16...
Rxd1+ {[%clk 0:01:15]} 17. Rxd1 {[%clk 0:02:27.1]} 17... b6 {[%clk 0:00:50.3]}
18. Nxa6 {[%clk 0:02:17.9]} 18... Ra8 {[%clk 0:00:50.3]} 19. Nc7 {[%clk
0:02:15]} 19... Rc8 {[%clk 0:00:48]} 20. N7d5 {[%clk 0:02:15]} 20... e6 {[%clk
0:00:43.3]} 21. Nxb6 {[%clk 0:02:08]} 21... Rb8 {[%clk 0:00:38.9]} 22. Bxc6
{[%clk 0:02:07.7]} 1-0

[Event "Late-Titled-Tuesday-Blitz-January-23-2024"]
[Site "Chess.com"]
[Date "2024.01.23"]
[Round "2"]
[White "ChessSwole"]
[Black "Carlitus2004"]
[Result "0-1"]
[WhiteElo "2617"]
[BlackElo "2415"]
[TimeControl "180+1"]
[EndTime "14:14:47 PST"]
[Termination "Carlitus2004 won by checkmate"]

1. e4 {[%clk 0:03:00.8]} 1... Nc6 {[%clk 0:02:57.5]} 2. Nf3 {[%clk 0:03:00.5]}
2... g6 {[%clk 0:02:56.4]} 3. d4 {[%clk 0:03:00.5]} 3... d6 {[%clk 0:02:56]} 4.
Be2 {[%clk 0:02:58.2]} 4... Bg7 {[%clk 0:02:56]} 5. O-O {[%clk 0:02:57.9]} 5...
e5 {[%clk 0:02:56.6]} 6. c3 {[%clk 0:02:57.9]} 6... Nf6 {[%clk 0:02:53.9]} 7.
Re1 {[%clk 0:02:51.6]} 7... O-O {[%clk 0:02:44.1]} 8. Nbd2 {[%clk 0:02:48.4]}
8... Re8 {[%clk 0:02:42]} 9. Bf1 {[%clk 0:02:45.5]} 9... Nh5 {[%clk 0:02:34.6]}
10. Nc4 {[%clk 0:02:43.1]} 10... Nf4 {[%clk 0:02:30.9]} 11. h3 {[%clk
0:02:37.3]} 11... Qf6 {[%clk 0:02:23.1]} 12. Kh2 {[%clk 0:02:28.2]} 12... h6
{[%clk 0:02:18]} 13. g3 {[%clk 0:02:24.9]} 13... Nh5 {[%clk 0:02:16.9]} 14. dxe5
{[%clk 0:02:19.3]} 14... Nxe5 {[%clk 0:02:02.1]} 15. Ncxe5 {[%clk 0:02:15.3]}
15... dxe5 {[%clk 0:02:02]} 16. Be3 {[%clk 0:02:06.2]} 16... Be6 {[%clk
0:02:01.2]} 17. Nd2 {[%clk 0:01:58.3]} 17... Rad8 {[%clk 0:01:55.3]} 18. a4
{[%clk 0:01:54.4]} 18... Rd7 {[%clk 0:01:29.2]} 19. Be2 {[%clk 0:01:45.5]} 19...
Red8 {[%clk 0:01:22.8]} 20. Qc2 {[%clk 0:01:24.7]} 20... Rxd2 {[%clk 0:01:18.1]}
21. Bxd2 {[%clk 0:01:21.5]} 21... Qxf2+ {[%clk 0:01:18.2]} 22. Kh1 {[%clk
0:01:22.1]} 22... Nxg3# {[%clk 0:01:18.6]} 0-1

[Event "Late-Titled-Tuesday-Blitz-January-23-2024"]
[Site "Chess.com"]
[Date "2024.01.23"]
[Round "2"]
[White "Boninknights"]
[Black "j_coca"]
[Result "1-0"]
[WhiteElo "2375"]
[BlackElo "2529"]
[TimeControl "180+1"]
[EndTime "14:14:53 PST"]
[Termination "Boninknights won by resignation"]

1. d4 {[%clk 0:02:58.5]} 1... g6 {[%clk 0:02:58.4]} 2. Bg5 {[%clk 0:02:55.6]}
2... Bg7 {[%clk 0:02:58.2]} 3. c3 {[%clk 0:02:55.5]} 3... f6 {[%clk 0:02:58.7]}
4. Bh4 {[%clk 0:02:52.9]} 4... Nh6 {[%clk 0:02:59]} 5. e4 {[%clk 0:02:49.7]}
5... O-O {[%clk 0:02:59.5]} 6. Bc4+ {[%clk 0:02:46.4]} 6... Kh8 {[%clk
0:02:59.2]} 7. Ne2 {[%clk 0:02:45]} 7... d6 {[%clk 0:02:59.3]} 8. Nd2 {[%clk
0:02:40.2]} 8... Nc6 {[%clk 0:02:59.8]} 9. Qc2 {[%clk 0:02:32.8]} 9... a6 {[%clk
0:02:58.5]} 10. a3 {[%clk 0:02:30.8]} 10... Qe8 {[%clk 0:02:59]} 11. Bg3 {[%clk
0:02:25.5]} 11... e5 {[%clk 0:02:59]} 12. d5 {[%clk 0:02:23.5]} 12... Ne7 {[%clk
0:02:58.8]} 13. h4 {[%clk 0:02:19.8]} 13... f5 {[%clk 0:02:59.3]} 14. f3 {[%clk
0:02:15.6]} 14... Bd7 {[%clk 0:02:56.7]} 15. h5 {[%clk 0:02:13]} 15... g5 {[%clk
0:02:56.5]} 16. Bd3 {[%clk 0:02:09.7]} 16... f4 {[%clk 0:02:56.5]} 17. Bf2
{[%clk 0:02:08.6]} 17... c5 {[%clk 0:02:54.5]} 18. g4 {[%clk 0:02:05.7]} 18...
b5 {[%clk 0:02:53.3]} 19. c4 {[%clk 0:02:02.4]} 19... Nhg8 {[%clk 0:02:47.7]}
20. b4 {[%clk 0:02:00.4]} 20... cxb4 {[%clk 0:02:46.5]} 21. axb4 {[%clk
0:01:59.7]} 21... h6 {[%clk 0:02:45.4]} 22. c5 {[%clk 0:01:47.1]} 22... Nf6
{[%clk 0:02:44.9]} 23. cxd6 {[%clk 0:01:37.7]} 23... Nc8 {[%clk 0:02:44.2]} 24.
Bc5 {[%clk 0:01:37.3]} 24... Qd8 {[%clk 0:02:40]} 25. Kf2 {[%clk 0:01:33.5]}
25... Ne8 {[%clk 0:02:40]} 26. Ra2 {[%clk 0:01:27.8]} 26... Ncxd6 {[%clk
0:02:38.8]} 27. Rha1 {[%clk 0:01:25.6]} 27... Bc8 {[%clk 0:02:08.6]} 28. Nb3
{[%clk 0:01:23.6]} 28... Rb8 {[%clk 0:02:08.3]} 29. Na5 {[%clk 0:01:21.2]} 29...
Nf6 {[%clk 0:02:06.4]} 30. Nc6 {[%clk 0:01:19.4]} 30... Qc7 {[%clk 0:02:05.2]}
31. Nxb8 {[%clk 0:01:16.9]} 31... Qxb8 {[%clk 0:02:06.1]} 32. Rxa6 {[%clk
0:01:14.4]} 32... Bxa6 {[%clk 0:02:05.7]} 33. Rxa6 {[%clk 0:01:13.7]} 33... Rd8
{[%clk 0:02:01.8]} 34. Nc3 {[%clk 0:01:12.1]} 34... Qc7 {[%clk 0:02:00.6]} 35.
Rc6 {[%clk 0:01:09.2]} 35... Qd7 {[%clk 0:01:58.6]} 36. Rxd6 {[%clk 0:01:08.1]}
1-0

[Event "Late-Titled-Tuesday-Blitz-January-23-2024"]
[Site "Chess.com"]
[Date "2024.01.23"]
[Round "2"]
[White "TV27"]
[Black "toninhojit"]
[Result "1/2-1/2"]
[WhiteElo "2192"]
[BlackElo "2468"]
[TimeControl "180+1"]
[EndTime "14:14:54 PST"]
[Termination "Game drawn by repetition"]

1. e4 {[%clk 0:02:58.3]} 1... e5 {[%clk 0:02:59.9]} 2. Nf3 {[%clk 0:02:56.9]}
2... Nc6 {[%clk 0:03:00.3]} 3. Bc4 {[%clk 0:02:57.3]} 3... Nf6 {[%clk
0:03:00.5]} 4. Ng5 {[%clk 0:02:55.6]} 4... d5 {[%clk 0:02:59.8]} 5. exd5 {[%clk
0:02:55.7]} 5... Na5 {[%clk 0:02:59.5]} 6. Bb5+ {[%clk 0:02:55.8]} 6... c6
{[%clk 0:03:00.1]} 7. dxc6 {[%clk 0:02:56]} 7... bxc6 {[%clk 0:03:01]} 8. Bd3
{[%clk 0:02:56.3]} 8... h6 {[%clk 0:02:59.5]} 9. Ne4 {[%clk 0:02:39.9]} 9... Nd5
{[%clk 0:02:59.7]} 10. Nbc3 {[%clk 0:02:04.1]} 10... Be7 {[%clk 0:02:55]} 11.
O-O {[%clk 0:01:58.1]} 11... O-O {[%clk 0:02:54.4]} 12. Nxd5 {[%clk 0:01:55.2]}
12... cxd5 {[%clk 0:02:55.3]} 13. Ng3 {[%clk 0:01:55]} 13... e4 {[%clk
0:02:54.3]} 14. Be2 {[%clk 0:01:54.9]} 14... f5 {[%clk 0:02:54.4]} 15. d3 {[%clk
0:01:53.6]} 15... f4 {[%clk 0:02:50.4]} 16. Nh1 {[%clk 0:01:48.7]} 16... f3
{[%clk 0:02:31]} 17. gxf3 {[%clk 0:01:48.2]} 17... exf3 {[%clk 0:02:31.9]} 18.
Bxf3 {[%clk 0:01:48]} 18... Bh3 {[%clk 0:02:32.7]} 19. Re1 {[%clk 0:01:42.6]}
19... Bc5 {[%clk 0:02:24.8]} 20. d4 {[%clk 0:01:36.6]} 20... Bd6 {[%clk
0:02:18.5]} 21. Bxd5+ {[%clk 0:01:32.4]} 21... Kh8 {[%clk 0:02:19]} 22. Qh5
{[%clk 0:01:32.2]} 22... Rf5 {[%clk 0:01:54.7]} 23. Qxh3 {[%clk 0:01:16.3]}
23... Rxd5 {[%clk 0:01:54.9]} 24. Bxh6 {[%clk 0:01:13.1]} 24... gxh6 {[%clk
0:01:55.2]} 25. Qxh6+ {[%clk 0:01:12.4]} 25... Kg8 {[%clk 0:01:55.7]} 26. Qg6+
{[%clk 0:00:48.2]} 26... Kh8 {[%clk 0:01:55.9]} 27. Qh6+ {[%clk 0:00:48.2]}
27... Kg8 {[%clk 0:01:56.1]} 28. Qg6+ {[%clk 0:00:48.5]} 28... Kh8 {[%clk
0:01:56.7]} 29. Qh6+ {[%clk 0:00:48.7]} 1/2-1/2

[Event "Late-Titled-Tuesday-Blitz-January-23-2024"]
[Site "Chess.com"]
[Date "2024.01.23"]
[Round "2"]
[White "Jenia84"]
[Black "Matrix3x3a"]
[Result "1-0"]
[WhiteElo "2310"]
[BlackElo "2507"]
[TimeControl "180+1"]
[EndTime "14:14:56 PST"]
[Termination "Jenia84 won by resignation"]

1. e4 {[%clk 0:02:56.7]} 1... c5 {[%clk 0:03:00.2]} 2. Nf3 {[%clk 0:02:56.5]}
2... d6 {[%clk 0:03:00.5]} 3. d4 {[%clk 0:02:56.9]} 3... cxd4 {[%clk 0:03:01.4]}
4. Nxd4 {[%clk 0:02:57.3]} 4... Nf6 {[%clk 0:03:02]} 5. Nc3 {[%clk 0:02:57.7]}
5... a6 {[%clk 0:03:02.6]} 6. f3 {[%clk 0:02:57.6]} 6... e5 {[%clk 0:03:02]} 7.
Nb3 {[%clk 0:02:57.7]} 7... Be7 {[%clk 0:03:02.3]} 8. Be3 {[%clk 0:02:58.2]}
8... Be6 {[%clk 0:03:02.5]} 9. Qd2 {[%clk 0:02:58.7]} 9... h5 {[%clk 0:03:03]}
10. O-O-O {[%clk 0:02:58.6]} 10... Nbd7 {[%clk 0:03:03.3]} 11. Kb1 {[%clk
0:02:57.3]} 11... Rc8 {[%clk 0:03:03.4]} 12. h3 {[%clk 0:02:57.1]} 12... b5
{[%clk 0:03:03.4]} 13. Nd5 {[%clk 0:02:55.2]} 13... Nxd5 {[%clk 0:03:01.9]} 14.
exd5 {[%clk 0:02:55.4]} 14... Bf5 {[%clk 0:03:01.8]} 15. Bd3 {[%clk 0:02:55.4]}
15... Bxd3 {[%clk 0:03:02]} 16. Qxd3 {[%clk 0:02:55.5]} 16... h4 {[%clk
0:03:02]} 17. f4 {[%clk 0:02:54.1]} 17... O-O {[%clk 0:03:01.4]} 18. Qf5 {[%clk
0:02:47.7]} 18... Bf6 {[%clk 0:02:58.7]} 19. fxe5 {[%clk 0:02:44.2]} 19... Nxe5
{[%clk 0:02:58.9]} 20. Bd4 {[%clk 0:02:41.7]} 20... g6 {[%clk 0:02:55.8]} 21.
Qf2 {[%clk 0:02:39.1]} 21... Bg7 {[%clk 0:02:51.9]} 22. Nd2 {[%clk 0:02:36.3]}
22... Nc4 {[%clk 0:02:49.2]} 23. Nxc4 {[%clk 0:02:35.4]} 23... Rxc4 {[%clk
0:02:50.1]} 24. Bxg7 {[%clk 0:02:34.8]} 24... Kxg7 {[%clk 0:02:51]} 25. Rhf1
{[%clk 0:02:30.5]} 25... Qg5 {[%clk 0:02:47.4]} 26. Rd4 {[%clk 0:02:27.6]} 26...
Rxd4 {[%clk 0:02:42.6]} 27. Qxd4+ {[%clk 0:02:27]} 27... Qe5 {[%clk 0:02:41.2]}
28. Qxe5+ {[%clk 0:02:25.9]} 28... dxe5 {[%clk 0:02:42.1]} 29. b3 {[%clk
0:02:26.1]} 29... Rd8 {[%clk 0:02:39.9]} 30. c4 {[%clk 0:02:25.7]} 30... bxc4
{[%clk 0:02:39.4]} 31. bxc4 {[%clk 0:02:25.7]} 31... f5 {[%clk 0:02:39.7]} 32.
Kc2 {[%clk 0:02:25.1]} 32... Kf6 {[%clk 0:02:37.8]} 33. Kd3 {[%clk 0:02:23.6]}
33... Ke7 {[%clk 0:02:36.6]} 34. Rb1 {[%clk 0:02:21.3]} 34... Rd6 {[%clk
0:02:33.9]} 35. Rb7+ {[%clk 0:02:20.1]} 35... Kf6 {[%clk 0:02:31.5]} 36. Rh7
{[%clk 0:02:17.8]} 36... Kg5 {[%clk 0:02:29.9]} 37. Ke3 {[%clk 0:02:12.2]} 37...
a5 {[%clk 0:02:14.9]} 38. Re7 {[%clk 0:02:02.8]} 38... e4 {[%clk 0:02:12.2]} 39.
Rc7 {[%clk 0:01:53.2]} 39... Rb6 {[%clk 0:01:59.2]} 40. c5 {[%clk 0:01:52.7]}
40... Rb2 {[%clk 0:01:57.2]} 41. d6 {[%clk 0:01:51.2]} 41... Rxa2 {[%clk
0:01:56]} 42. d7 {[%clk 0:01:50.7]} 42... Ra3+ {[%clk 0:01:56.1]} 43. Ke2 {[%clk
0:01:43.8]} 43... Rd3 {[%clk 0:01:53.1]} 44. c6 {[%clk 0:01:42.9]} 44... a4
{[%clk 0:01:51.6]} 45. Rc8 {[%clk 0:01:42.6]} 45... a3 {[%clk 0:01:50.8]} 46.
d8=Q+ {[%clk 0:01:41.7]} 46... Rxd8 {[%clk 0:01:50.2]} 47. Rxd8 {[%clk 0:01:42]}
47... a2 {[%clk 0:01:50.2]} 48. Ra8 {[%clk 0:01:41.9]} 1-0

[Event "Late-Titled-Tuesday-Blitz-January-23-2024"]
[Site "Chess.com"]
[Date "2024.01.23"]
[Round "2"]
[White "Bkmzzzzz"]
[Black "koziororo"]
[Result "1-0"]
[WhiteElo "2407"]
[BlackElo "2591"]
[TimeControl "180+1"]
[EndTime "14:14:59 PST"]
[Termination "Bkmzzzzz won by resignation"]

1. e4 {[%clk 0:03:00.9]} 1... g6 {[%clk 0:02:57]} 2. d4 {[%clk 0:02:57.8]} 2...
Bg7 {[%clk 0:02:57.9]} 3. Nc3 {[%clk 0:02:56.6]} 3... c5 {[%clk 0:02:57.9]} 4.
Nf3 {[%clk 0:02:51.6]} 4... cxd4 {[%clk 0:02:58.8]} 5. Nxd4 {[%clk 0:02:52.2]}
5... Nc6 {[%clk 0:02:59.2]} 6. Be3 {[%clk 0:02:48.5]} 6... d6 {[%clk 0:02:56.7]}
7. Bc4 {[%clk 0:02:45.7]} 7... Nf6 {[%clk 0:02:56.9]} 8. f3 {[%clk 0:02:46]}
8... O-O {[%clk 0:02:57.1]} 9. Qd2 {[%clk 0:02:46.1]} 9... Bd7 {[%clk
0:02:57.8]} 10. h4 {[%clk 0:02:45.8]} 10... h5 {[%clk 0:02:56.7]} 11. O-O-O
{[%clk 0:02:44.7]} 11... Rc8 {[%clk 0:02:56.3]} 12. Bb3 {[%clk 0:02:39.6]} 12...
Ne5 {[%clk 0:02:56.4]} 13. Kb1 {[%clk 0:02:37.3]} 13... Re8 {[%clk 0:02:55.1]}
14. Bh6 {[%clk 0:02:36.6]} 14... Bh8 {[%clk 0:02:51.8]} 15. g4 {[%clk
0:02:32.8]} 15... Nc4 {[%clk 0:02:46.8]} 16. Bxc4 {[%clk 0:02:29.8]} 16... Rxc4
{[%clk 0:02:47.7]} 17. gxh5 {[%clk 0:02:30]} 17... Nxh5 {[%clk 0:02:45.7]} 18.
Nde2 {[%clk 0:02:17]} 18... Be6 {[%clk 0:02:37.5]} 19. f4 {[%clk 0:01:55.5]}
19... Bg4 {[%clk 0:02:23]} 20. e5 {[%clk 0:01:32.7]} 20... Qa5 {[%clk
0:02:04.4]} 21. Rhg1 {[%clk 0:01:19.7]} 21... Bxe2 {[%clk 0:02:01.7]} 22. Qxe2
{[%clk 0:01:16.5]} 22... Rxc3 {[%clk 0:02:01.7]} 23. Qxh5 {[%clk 0:01:10.2]}
23... Bg7 {[%clk 0:01:31.7]} 24. Rxg6 {[%clk 0:00:59.8]} 24... fxg6 {[%clk
0:01:30.8]} 25. Qxg6 {[%clk 0:01:00.7]} 1-0